Cogmind - Beta 17.1 @@@ ROGUE MODE // 2026.09.06 @ 00:27:25 Player: Kite Result: Escaped! Performance ------------- Evolutions (9) 4500 Regions Visited (25) 5000 Robots Destroyed (483) 2415 Value Destroyed (24275) 24275 Prototype IDs (54) 1080 Alien Tech Used (10) 2000 Bonus (20565) 20565 TOTAL SCORE: 59835 Bonus ------- Triggered High Security 500 High Alert Combat Kills 4863 Follower Combat Kills 3104 Entered Garrisons 200 Used RIF Installer 500 Registered with UFD 300 Met Optimus in HQ 500 Met Zhirov 300 MAIN.C Attacked Proxy Base 500 Built Enhanced Grunts 300 Met R17 at Cetus 500 Met R17 at Research 2000 Scanned by Researcher 500 Acquired SGEMP 2000 Delivered SGEMP 2000 Win 3000 Friendly Fire -502 Cogmind --------- Core Integrity 808/1600 Matter 280/300 Energy 99/100 System Corruption 14% Temperature Cool (0) Movement Core (50) Location To Epsilon Eridani Parts ------- > --- POWER (3) -------- (None) > --- PROPULSION (8) --- Heavy Siege Treads Advanced Heavy Treads > --- UTILITY (9) ------ Experimental Core Analyzer > --- WEAPON (5) ------- (None) > --- INVENTORY (5) ---- (None) Peak State ------------ > --- POWER ------------ Compact Particle Reactor Light Quantum Reactor Light Quantum Reactor > --- PROPULSION ------- Centrium Heavy Treads Biometal Heavy Treads High-density Centrium Heavy Treads High-density Centrium Heavy Treads > --- UTILITY ---------- Vampiric Humpback Experimental Signal Interpreter Experimental Core Analyzer Experimental Actuator Array Advanced Transmission Jammer Centrium Medium Armor Plating Experimental Force Field > --- WEAPON ----------- Core Stripper Sigix Broadsword > --- INVENTORY -------- Light Quantum Reactor Heavy Siege Treads Heavy Siege Treads Advanced Heavy Treads Centrium Heavy Treads Advanced Matter Compressor Deep Structural Scanner Advanced Sensor Array Long-range Sensor Array Experimental Actuator Array Centrium Medium Armor Plating Centrium Medium Armor Plating Experimental EM Shield Advanced Force Field Dimensional Node Initializer Transdimensional Reconstructor High-powered Transdimensional Reconstructor High-powered Transdimensional Reconstructor Subatomic Replicator Terrabomb Core Cannon Perforator Advanced Micro-nuke Launcher Plasma Sword Plasma Sword Kinetic Spear SGEMP Prototype [Rating: 252] Favorites ----------- Power Quantum Reactor Engine F-cell Engine Power Core Neutrino Core Reactor Quantum Reactor Propulsion Light Treads Treads Light Treads Wheel Overtuned Huge Scrapsphere Utility Vampiric Humpback Device Improved Sensor Array Storage Vampiric Humpback Processor Improved Signal Interpreter Hackware Authchip [Device] Protection Centrium Medium Armor Plating Artifact Phase Redirector Weapon Plasma Sword Energy Gun Heavy Beamcaster Energy Cannon Core Cannon Ballistic Gun Shotgun Ballistic Cannon Perforator Launcher Rocket Array Special Weapon Voltaic Drivehammer Impact Weapon Heavy Flail Slashing Weapon Plasma Sword Piercing Weapon Kinetic Spear Build | -11 -10 -10 -9 -8 -7 -7 -7 -7 -5 -5 -5 -5 -5 -5 -4 -4 -4 -4 -4 -3 -3 -2 -2 -2 -1 ------- Run | Yrd Mat Min Mat Mat Fac Sto Rec Scr Fac Was Fac Upp Upp Zhi Pro Fac Ext Cet Arc Res Qua Res Tes Gar Acc Slots Evolved 18 | . . . 2 2 2 . . . 4 . . . . . . 2 . . . 2 . 2 . . 2 Power 2 | . . . . . . . . . . . . . . . . . . . . 2 . . . . . Propulsion 6 | . . . 2 1 . . . . 1 . . . . . . 2 . . . . . . . . . Utility 7 | . . . . 1 2 . . . 1 . . . . . . . . . . . . 2 . . 1 Weapon 3 | . . . . . . . . . 2 . . . . . . . . . . . . . . . 1 Parts Attached 325 | 7 10 2 22 7 12 29 6 14 13 7 2 1 1 . 8 38 22 12 15 15 42 10 13 7 10 Power 38 | 1 1 . 2 . . 3 . . 1 2 . . 1 . 2 2 3 1 . 4 7 . 4 4 . Engine 8 | 1 1 . 1 . . 3 . . . . . . . . 1 . . . . 1 . . . . . Core 4 | . . . 1 . . . . . 1 . . . 1 . . 1 . . . . . . . . . Reactor 26 | . . . . . . . . . . 2 . . . . 1 1 3 1 . 3 7 . 4 4 . Propulsion 109 | 2 2 2 11 3 3 13 3 6 6 3 1 . . . 1 16 7 2 5 1 18 2 . 1 1 Treads 98 | 2 . 1 7 3 3 13 3 6 2 3 1 . . . 1 16 7 2 5 1 18 2 . 1 1 Leg . | . . . . . . . . . . . . . . . . . . . . . . . . . . Wheel 11 | . 2 1 4 . . . . . 4 . . . . . . . . . . . . . . . . Hover . | . . . . . . . . . . . . . . . . . . . . . . . . . . Flight . | . . . . . . . . . . . . . . . . . . . . . . . . . . Utility 115 | 2 5 . 3 3 7 7 2 6 4 1 1 1 . . 4 13 3 7 6 8 15 5 3 1 8 Device 51 | 1 1 . . . 2 . 2 3 3 . . . . . 1 7 1 2 5 4 8 2 1 . 8 Storage 9 | 1 3 . . 1 . . . 1 . 1 . . . . . . . . . . 1 . 1 . . Processor 13 | . . . . 2 2 2 . . . . . . . . 1 2 . . . 2 . 2 . . . Hackware 11 | . . . . . . 1 . 1 1 . 1 . . . . 2 . . . 2 3 . . . . Protection 30 | . 1 . 3 . 3 4 . 1 . . . 1 . . 2 2 2 5 1 . 2 1 1 1 . Artifact 1 | . . . . . . . . . . . . . . . . . . . . . 1 . . . . Weapon 63 | 2 2 . 6 1 2 6 1 2 2 1 . . . . 1 7 9 2 4 2 2 3 6 1 1 Energy Gun 2 | . . . . . . . . . . . . . . . . . 1 . . . . . 1 . . Energy Cannon 2 | . . . . . . . . . . . . . . . . . . . . . . . 2 . . Ballistic Gun 20 | 2 2 . 5 . . . . . . . . . . . . . 6 1 4 . . . . . . Ballistic Cannon 1 | . . . . . . . . . . . . . . . . . . . . . . . 1 . . Launcher 6 | . . . . . . 4 . 1 . . . . . . . . . . . . . 1 . . . Special Weapon 3 | . . . . . . . . . 1 1 . . . . . . . 1 . . . . . . . Impact Weapon 6 | . . . . . 1 2 . 1 . . . . . . . . 1 . . . 1 . . . . Slashing Weapon 20 | . . . 1 1 1 . 1 . 1 . . . . . 1 7 1 . . 2 1 . 2 . 1 Piercing Weapon 3 | . . . . . . . . . . . . . . . . . . . . . . 2 . 1 . Special Melee Weapon . | . . . . . . . . . . . . . . . . . . . . . . . . . . Unidentified Prototypes 36 | . . . 1 . 1 2 . . . . . . . 1 . . . 3 . 6 12 2 5 1 2 Corrupted Parts 12 | . . . . . . . . 1 . . . . . . 1 . 2 1 7 . . . . . . System Corruption 78 | . . . . . . . . 1 . . . . . . 4 . 11 9 53 . . . . . . Parts Lost 82 | . 1 1 3 . 1 20 1 4 2 . 1 . 1 . 4 6 12 . . 1 3 . 1 2 18 Power 9 | . 1 . . . . 1 . . 1 . . . 1 . 1 2 . . . . 1 . . . 1 Propulsion 33 | . . 1 2 . . 12 . 4 . . 1 . . . . 1 5 . . . 1 . . . 6 Utility 22 | . . . . . . 5 . . . . . . . . 1 3 2 . . 1 . . 1 2 7 Weapon 18 | . . . 1 . 1 2 1 . 1 . . . . . 2 . 5 . . . 1 . . . 4 Highest Loss Streak 16 | . 1 1 1 . 1 5 1 3 1 . 1 . 1 . 2 2 6 . . 1 2 . 1 1 16 To Critical Strikes 3 | . . . . . . . . . 1 . 1 . . . 1 . . . . . . . . . . Average Backups 26 | 1 16 24 24 27 28 27 28 27 23 26 26 27 26 27 27 26 26 29 28 28 27 27 27 26 24 Power . | . . . . . . 1 . . . 1 1 1 . . . 1 1 1 1 . . 1 . 1 1 Propulsion 6 | . 1 5 7 10 13 9 7 6 4 7 8 8 7 7 7 7 6 7 6 6 5 5 4 4 3 Utility 10 | . 6 13 11 8 8 10 11 10 10 10 9 11 11 12 12 8 10 12 11 13 13 10 9 8 9 Weapon 6 | . 7 6 5 8 5 6 8 8 6 5 6 6 6 6 5 7 5 8 7 7 3 4 5 6 6 Tool/Special . | . . . . . . . . . . . . . . . . . . . . . . . . . . Unused Backups 105 | . 1 . 11 2 5 2 1 7 1 6 2 1 1 1 2 10 6 5 . 7 19 2 2 1 10 Power 15 | . . . . . . 2 . . . 1 1 . . . 1 2 1 2 . 1 1 1 . 1 1 Propulsion 9 | . . . . . . . . 1 1 1 . . . . . 3 1 . . . 2 . . . . Utility 52 | . . . 9 2 1 . 1 3 . 3 1 1 1 1 1 1 2 2 . 4 13 . 1 . 5 Weapon 22 | . 1 . 1 . 4 . . 2 . . . . . . . 4 2 1 . 2 1 1 1 . 2 Tool/Special 7 | . . . 1 . . . . 1 . 1 . . . . . . . . . . 2 . . . 2 Average Slot Usage (%) 80 | . 88 99 97 91 91 90 91 90 85 76 76 75 75 76 71 79 71 71 68 75 74 72 69 72 70 Engine 2 | . 3 14 2 9 7 6 7 6 3 . . . . . . 1 . . . . . . . . . Reactor 5 | . . . . . . . . . . 2 5 5 3 . 2 2 2 5 5 13 13 8 10 13 10 Treads 24 | . 15 3 11 45 38 37 37 37 31 5 11 11 11 11 5 25 25 21 20 19 23 20 17 17 15 Wheel 3 | . 12 24 30 . . . . . 1 16 11 11 11 11 11 1 . . . . . . . . . Device 7 | . 11 . . 1 6 4 6 7 10 11 10 10 11 11 9 7 5 1 8 7 9 12 12 11 13 Storage 5 | . 14 14 11 9 7 7 7 6 5 5 5 5 5 5 5 5 5 5 5 4 4 4 4 4 3 Processor 5 | . . . . . 12 8 7 7 5 5 5 5 5 5 5 6 5 5 5 4 4 6 8 8 7 Protection 3 | . 2 14 11 8 3 5 7 2 . . . . . . 1 2 5 11 5 3 2 2 2 5 4 Ballistic Gun 3 | . 28 28 21 17 1 . . . . . . . . . . . 3 1 . 12 . . . . . Impact Weapon 4 | . . . . . 6 6 7 6 8 11 10 11 11 11 11 5 4 5 2 4 1 . . . . Slashing Weapon 8 | . . . . . 6 6 6 6 13 7 11 11 10 11 7 14 10 10 14 1 13 8 10 11 10 Peak Build Rating 252 | 7 13 13 19 23 32 41 39 55 75 93 88 87 86 85 99 126 130 146 152 183 226 240 251 252 246 Average Rating 115 | 5 10 12 16 21 30 36 37 41 67 81 86 84 84 84 93 116 120 137 136 170 193 232 236 235 225 On Entrance 94 | . 7 13 13 18 23 31 39 38 54 71 87 84 85 84 85 94 116 129 142 148 175 213 233 238 232 Avg Prop Armor Cover (%) 14 | . . 9 . . . . . 43 19 12 12 14 13 14 11 14 . . . . . 5 . 9 44 Naked Turns . | . . . . . . . . . . . . . . . . . . . . . . . . . . Heaviest Build 305 | 14 94 94 99 159 161 174 162 170 174 235 234 230 235 228 239 253 263 267 248 298 303 297 305 300 302 Greatest Support 340 | 40 40 26 83 100 100 111 111 111 146 60 40 40 40 40 40 280 285 290 310 300 340 330 335 335 315 Greatest Overweight (x) 11 | . 8 9 4 1 1 1 1 1 8 5 5 5 5 5 11 11 1 . . . 1 1 . 1 3 Average Overweight (x) 1 | . 2 4 1 . 1 1 1 . 1 3 5 5 5 5 5 1 . . . . . . . . . Largest Inventory Capacity 35 | 8 25 25 25 30 30 30 30 30 30 35 35 35 35 35 35 35 35 35 35 35 35 35 35 35 35 Average Capacity 32 | 7 21 25 25 28 30 30 30 29 30 34 35 35 35 35 35 35 35 35 35 35 35 35 35 35 32 Most Carried 35 | 3 25 25 25 30 30 30 30 30 30 35 35 35 35 35 35 35 35 35 35 35 35 35 35 35 35 Average Carried 31 | 1 16 24 24 28 29 28 29 28 25 31 34 34 34 34 34 33 33 34 34 34 34 34 34 34 30 Final Capacity 35 | 8 25 25 25 30 30 30 30 30 30 35 35 35 35 35 35 35 35 35 35 35 35 35 35 35 5 Final Carried 35 | 3 24 25 25 30 30 30 30 27 30 35 35 35 35 35 32 35 35 35 35 35 35 35 35 35 . Scrap Suit Usage (%) 1 | . . . . . . . . . 13 27 15 14 . . . . . . . . . . . . . Parts Cannibalized 3 | . . . . . . . . . . . 3 . . . . . . . . . . . . . . Class Distribution -------------------- 53% | Hauler-Mutant 13% | Hauler-Gladiator 9% | Hauler-Scrapper 6% | Scavenger-Mutant 5% | Mutant 4% | Hauler-Assassin Dominant Class ---------------- Mutant | -10/Materials Mutant | -10/Mines Scavenger-Mutant | -9/Materials Hauler-Mutant | -8/Materials Hauler-Gladiator | -7/Factory Hauler-Mutant | -7/Storage Hauler-Mutant | -7/Recycling Hauler-Mutant | -7/Scraptown Hauler-Mutant | -5/Factory Hauler-Scrapper | -5/Waste Hauler-Scrapper | -5/Factory Hauler-Scrapper | -5/Upper Caves Hauler-Scrapper | -5/Upper Caves Hauler-Scrapper | -5/Zhirov Hauler-Scrapper | -4/Proximity Caves Hauler-Gladiator | -4/Factory Hauler-Mutant | -4/Extension Hauler-Mutant | -4/Cetus Hauler-Mutant | -4/Archives Scavenger-Tank | -3/Research Hauler-Mutant | -3/Quarantine Hauler-Assassin | -2/Research Hauler-Mutant | -2/Testing Hauler-Gladiator | -2/Garrison Hauler-Gladiator | -1/Access Resources | -11 -10 -10 -9 -8 -7 -7 -7 -7 -5 -5 -5 -5 -5 -5 -4 -4 -4 -4 -4 -3 -3 -2 -2 -2 -1 ----------- Run | Yrd Mat Min Mat Mat Fac Sto Rec Scr Fac Was Fac Upp Upp Zhi Pro Fac Ext Cet Arc Res Qua Res Tes Gar Acc Matter Collected 16862 | 244 622 248 782 593 229 904 426 996 1355 190 233 73 167 . 963 775 753 298 382 992 1831 265 1874 528 1139 Remotely . | . . . . . . . . . . . . . . . . . . . . . . . . . . Salvage Created 23690 | 107 669 341 922 668 517 1406 997 1047 590 . 442 . 130 . 923 1221 1993 369 321 1177 1618 883 2936 2814 1599 Parts 1063 | 11 53 16 68 34 30 87 35 56 21 . 21 . 6 . 23 39 59 13 25 43 75 64 119 102 63 Haulers Intercepted 22 | . 2 . 2 4 . 4 . . . . . . . . . . 3 . . 3 . . 2 . 2 Recyclers Shooed 8 | . . 1 1 1 . . 1 . . . . . . . . . 1 . . 2 . . . . 1 Parts Field Recycled . | . . . . . . . . . . . . . . . . . . . . . . . . . . Retrieved Matter . | . . . . . . . . . . . . . . . . . . . . . . . . . . Parts Self-Destructed 21 | . . . . . . . . . . . . . 2 . 19 . . . . . . . . . . Prevented 53 | . . . . . . . . . . . . . 1 . 52 . . . . . . . . . . Parts Restored . | . . . . . . . . . . . . . . . . . . . . . . . . . . Kills | -11 -10 -10 -9 -8 -7 -7 -7 -7 -5 -5 -5 -5 -5 -5 -4 -4 -4 -4 -4 -3 -3 -2 -2 -2 -1 ------- Run | Yrd Mat Min Mat Mat Fac Sto Rec Scr Fac Was Fac Upp Upp Zhi Pro Fac Ext Cet Arc Res Qua Res Tes Gar Acc Combat Hostiles Destroyed 339 | . 15 7 18 10 9 24 3 23 5 . 9 . 5 . 26 16 18 4 . 9 21 11 35 36 35 Melee 143 | . . . . 1 4 12 3 1 4 . 4 . 1 . 3 11 9 . . . 19 11 24 30 6 Guns 64 | . 15 7 18 9 3 . . . . . . . . . . . 2 1 . 9 . . . . . Cannons 13 | . . . . . . . . . . . . . . . . . . . . . . . 11 2 . AOE 98 | . . . . . . 10 . 22 . . 4 . 4 . 21 . 4 . . . . . . 4 29 Classes Destroyed 27 | 2 5 . 3 2 1 . . 5 . . 1 . . . 1 . . . . 2 1 . 2 1 1 Worker 30 | . . . . 2 . 8 . . 4 . . . . . . 3 . . . 2 . 1 2 . 8 Builder 26 | . 4 . 1 . 2 5 . . 2 . 1 . . . . 2 1 . . . . . 2 . 6 Tunneler 8 | 3 . . 2 1 . . . . . . . . . . . 1 1 . . . . . . . . Hauler 22 | . 2 . 2 4 . 4 . . . . . . . . . . 3 . . 3 . . 2 . 2 Recycler 26 | 1 1 2 1 . . 1 12 . 1 . . . . . . . 4 . . 2 . . . . 1 Carrier 1 | . . . . . . . . . . . . . . . . . . . . . . . . . 1 Operator 15 | . . . 1 . 1 1 . . 1 . 1 . . . . . 1 . 9 . . . . . . Watcher 13 | . 2 . 1 2 1 2 . . . . 1 . . . . 2 . 2 . . . . . . . Swarmer 57 | . 6 3 3 . . 7 . . . . 4 . 5 . 9 . 3 . . 4 . . . 4 9 Saboteur 4 | . . . . . . . . . . . . . . . 1 . . . . . . . 1 . 2 Grunt 130 | . 9 4 9 6 6 8 1 . 1 . 2 . . . 14 4 10 . . 1 7 . 15 18 15 Brawler 8 | . . . 1 . . 1 . . . . . . . . . . . . . . . . 2 2 2 Duelist 6 | . . . . 1 . . . . . . . . . . . . . . . . 1 . 2 1 1 Researcher 1 | . . . . . . . . . . . . . . . . . . . . . . . 1 . . Sentry 33 | . . . 5 3 1 7 2 . 2 . 1 . . . . 2 2 . . . . 3 . 5 . Hunter 16 | . . . . . . . . . . . 2 . . . . 4 2 . . 1 . 2 3 1 1 Programmer 36 | . . . . . 2 1 . . 2 . . . . . 2 6 . . . . 2 6 9 2 4 Behemoth 1 | . . . . . . . . . . . . . . . . . . . . . . . . 1 . Cetus Guard 4 | . . . . . . . . . . . . . . . . . . 4 . . . . . . . Quarantine Guard 10 | . . . . . . . . . . . . . . . . . . . . . 10 . . . . Enhanced Grunt 1 | . . . . . . . . . . . . . . . . . . . . 1 . . . . . Investigator 1 | . . . . . . . . . . . . . . . . . . . . . . . . . 1 Striker 6 | . . . . . . . . . . . . . . . . . . . . 1 . . 2 2 1 Executioner 2 | . . . . . . . . . . . . . . . . . . . . 2 . . . . . Alpha 7 1 | . . . . . . . . . . . . . . . . . . . . . . . 1 . . Fortress 1 | . . . . . . . . . . . . . . . . . . . . . 1 . . . . Federalist 5 | . . . . . . . . 5 . . . . . . . . . . . . . . . . . Explorer 2 | . . . . . . . . 2 . . . . . . . . . . . . . . . . . Ranger 1 | . . . . . . . . 1 . . . . . . . . . . . . . . . . . Guru 1 | . . . . . . . . 1 . . . . . . . . . . . . . . . . . Scrapper 13 | . . . . . . . . 13 . . . . . . . . . . . . . . . . . Savage 1 | . . . . . . . . 1 . . . . . . . . . . . . . . . . . Guerrilla 1 | . . . . . . . . . . . . . . . . . 1 . . . . . . . . Best Kill Streak 15 | 3 4 3 5 4 3 9 3 9 2 . 5 . 5 . 12 5 5 4 2 4 3 2 9 4 15 Combat Bots Only 12 | . 3 3 3 3 3 6 2 9 2 . 4 . 5 . 12 5 4 3 . 4 3 2 7 4 9 Max Kills in Single Turn 4 | 1 1 2 1 1 1 3 1 4 1 . 3 . 2 . 3 1 3 2 1 2 1 1 3 4 4 Gunslinging . | . . . . . . . . . . . . . . . . . . . . . . . . . . Exploded 4 | . . . . . . 2 . 4 . . 3 . 2 . 3 . 2 . . . . . . 4 3 Melee 1 | . . . . 1 1 1 1 1 1 . 1 . 1 . 1 1 1 . . . 1 1 1 1 1 Uniques/NPCs Destroyed . | . . . . . . . . . . . . . . . . . . . . . . . . . . Combat | -11 -10 -10 -9 -8 -7 -7 -7 -7 -5 -5 -5 -5 -5 -5 -4 -4 -4 -4 -4 -3 -3 -2 -2 -2 -1 -------- Run | Yrd Mat Min Mat Mat Fac Sto Rec Scr Fac Was Fac Upp Upp Zhi Pro Fac Ext Cet Arc Res Qua Res Tes Gar Acc Hostile Shots Fired 2959 | . 56 18 68 52 89 466 47 39 60 . 66 . 31 . 143 335 192 36 2 33 217 67 245 262 435 Missed 831 | . 21 4 14 14 29 133 8 11 13 . 8 . 8 . 67 105 50 16 . 6 55 14 47 57 151 Hits 2128 | . 35 14 54 38 60 333 39 28 47 . 58 . 23 . 76 230 142 20 2 27 162 53 198 205 284 Melee 63 | . . . . 2 . 16 . . . . . . . . . . . . . 1 4 . 6 16 18 Projectile 2065 | . 35 14 54 36 60 317 39 28 47 . 58 . 23 . 76 230 142 20 2 26 158 53 192 189 266 AOE 2 | . . . . . . . . . . . . . . . . . . . . 1 . . . . 1 Critical Strikes 104 | . . . 2 3 2 7 . 1 5 . 3 . . . 1 9 6 3 . 6 10 2 17 12 15 Actively Blocked 4 | . . . . . . . . . . . . . . . . . . . . . 4 . . . . Part Disruptions 9 | . . . . . . . . . . . . . . . . 2 . . . . 1 1 2 2 1 Damage Taken 37786 | . 473 162 685 598 555 3813 298 740 964 . 1047 . 347 . 1162 4238 3542 461 116 718 5474 530 2131 2847 6885 Core 2673 | . 78 28 118 13 62 366 17 49 20 . 86 . 30 . 165 177 129 . . 34 301 117 225 220 438 Absorbed by Shields 5977 | . . . . . . . . . . . . . . . 17 . 36 138 41 194 339 287 1649 2094 1182 Reduced by Siege Mode 20 | . . . . . . . . . . . . . . . . . . . . . . . 9 11 . Redirected to Core 228 | . . . . . . . . . . . . . . . . . . . . . . 89 139 . . Redirected to Shielding 107 | . . . . . . 107 . . . . . . . . . . . . . . . . . . . Ignored by Resistances 1710 | . . . . . . . . . 15 . . . . . . . . . . . . 451 810 364 70 Regen/Repaired (Parts) 4315 | . . . . . . . . . . . 26 . . . 139 . . . . . 2405 137 631 519 458 Core Remaining (%) 60 | 100 . 57 70 97 . . . 29 . . . . . . 51 . . . 49 . 51 . . 49 50 Volleys Fired 418 | 10 55 18 62 63 9 18 . 16 1 . 2 . 10 . 24 . 21 12 . 29 . . 22 5 41 Largest 4 | 2 2 2 2 2 2 1 . 1 1 . 1 . 1 . 1 . 4 2 . 3 . . 1 1 1 Hottest 300 | 40 46 46 46 46 46 39 . 45 5 . 39 . 39 . 45 . 123 60 . 105 . . 300 100 30 Shots Fired 710 | 20 110 36 125 125 18 18 . 16 1 . 2 . 10 . 26 . 35 11 1 88 . . 22 5 41 Gun 554 | 20 110 36 125 125 18 . . . . . . . . . . . 28 3 1 88 . . . . . Cannon 25 | . . . . . . . . . . . . . . . . . . . . . . . 22 3 . Launcher 124 | . . . . . . 18 . 16 . . 2 . 10 . 24 . 6 5 . . . . . 2 41 Special 7 | . . . . . . . . . 1 . . . . . 2 . 1 3 . . . . . . . Kinetic 570 | 20 110 36 125 125 18 . . . . . . . . . . . 20 3 1 88 . . 21 3 . Thermal 9 | . . . . . . . . . . . . . . . . . 8 . . . . . 1 . . Explosive 91 | . . . . . . 17 . 16 . . . . . . 15 . . . . . . . . 2 41 Electromagnetic 37 | . . . . . . 1 . . . . 2 . 10 . 11 . 7 6 . . . . . . . Robot Hit Streak 18 | 9 18 6 11 9 12 3 . 5 2 . 1 . . . 5 . 3 8 . 10 . . 6 5 6 Robot Miss Streak 13 | 2 5 9 6 4 1 3 . 3 . . 1 . . . 6 . 3 . . 3 . . 13 4 2 Penetration Max 3 | . . . . . . . . . . . . . . . . . 2 . . 1 . . 3 1 . Secondary Targets 3 | . 2 . . . . . . . . . . . . . . . 1 . . . . . . . . Max Gunslinging Chain 1 | . 1 . . . . . . . . . . . . . . . 1 . . . . . . . . Shots Hit Robots 1284 | 13 75 21 93 98 44 104 28 11 53 . 27 . 4 . 12 104 73 8 19 49 143 32 105 109 59 Core Hits 840 | 6 44 17 53 45 19 61 11 53 14 . 14 . 6 . 78 26 42 7 10 22 47 15 87 59 104 Critical Kills 26 | . . . 1 . 2 . . . . . 1 . . . . 1 2 1 . 4 1 . 11 2 . Critical Parts Destroyed 52 | . . . 1 . 1 3 1 . 1 . . . . . . 6 3 1 1 9 2 . 20 3 . Critical Strikes 190 | . . . 2 . 5 15 1 . 2 . 2 . . . . 28 15 3 2 15 24 4 44 22 6 Destroy 60 | . . . 2 . 1 . . . . . . . . . . . 2 3 1 14 . . 31 6 . Smash 23 | . . . . . 2 3 1 . 1 . 1 . . . . 7 3 . . 1 4 . . . . Sever 107 | . . . . . 2 12 . . 1 . 1 . . . . 21 10 . 1 . 20 4 13 16 6 Melee Attacks 1227 | . . . 1 1 48 117 35 5 66 . 50 1 7 . 9 155 94 . 26 12 186 52 141 172 49 Kinetic 2 | . . . . . . . . . . . . . . . . . . . . . 1 . . 1 . Impact 219 | . . . . . 20 28 12 . 18 . 30 . 2 . 2 45 32 . . 12 18 . . . . Slashing 989 | . . . 1 1 28 89 23 5 48 . 20 1 5 . 7 110 62 . 26 . 167 44 141 169 42 Piercing 17 | . . . . . . . . . . . . . . . . . . . . . . 8 . 2 7 Sneak Attacks 119 | . . . . . 3 15 21 . 15 . 4 . . . . 9 12 . 16 3 2 1 8 2 8 Combat Hostiles 6 | . . . . . . . . . . . . . . . . . . . . . 2 . 1 2 1 Follow-up Attacks 322 | . . . . . 3 13 2 . 18 . 17 . 3 . 1 47 36 . 6 . 63 9 39 47 18 Damage Inflicted 66823 | 130 1075 346 1310 1499 1209 5091 1786 2012 2256 . 1758 . 431 . 3071 3783 3926 997 1128 1889 6874 2284 6392 6690 10886 Guns 6456 | 130 1075 346 1310 1472 245 . . . . . . . . . . . 210 81 27 1560 . . . . . Cannons 1036 | . . . . . . . . . . . . . . . . . . . . . . . 995 41 . Explosions 18633 | . . . . . . 1783 . 2000 . . 643 . 276 . 2946 . 994 894 . . . . . 390 8707 Melee 40455 | . . . . . 964 3308 1786 . 2256 . 1115 . 155 . 125 3759 2694 . 1101 329 6818 2284 5370 6212 2179 Ramming 193 | . . . . 27 . . . 12 . . . . . . . 24 . . . . 56 . 27 47 . Kinetic 6801 | 130 1075 346 1310 1472 245 . . . . . . . . . . . 210 81 27 1560 . . 245 100 . Thermal 1295 | . . . . . . . . . . . 69 . 88 . 186 . . 202 . . . . 750 . . Explosive 15280 | . . . . . . 1765 . 2000 . . 444 . . . 2047 . . . . . . . . 390 8634 Electromagnetic 2808 | . . . . . . 18 . . . . 130 . 188 . 713 . 994 692 . . . . . . 73 Impact 6416 | . . . . . 297 608 450 . 553 . 608 . 55 . . 1597 1279 22 . 329 618 . . . . Slashing 33629 | . . . . . 667 2700 1336 . 1703 . 507 . 100 . 125 2162 1443 . 1101 . 6200 2139 5370 6099 1977 Piercing 401 | . . . . . . . . . . . . . . . . . . . . . . 145 . 54 202 Highest Corruption 85 | . . . 5 . 1 16 16 1 1 1 2 2 2 2 14 29 45 57 85 2 6 2 9 12 14 Average Corruption 12 | . . . 2 . 1 5 16 1 1 1 1 2 2 2 6 17 36 49 62 2 5 1 5 10 5 Corruption Purged 32 | . . . . . . . . . . . . . . . . 1 . . 25 . 6 . . . . Corruption Blocked . | . . . . . . . . . . . . . . . . . . . . . . . . . . Effects 538 | . . . 11 . 3 31 57 . 1 5 8 2 9 2 24 26 90 29 50 17 62 8 37 62 4 Message Errors 124 | . . . 2 . . 6 13 . . . 2 . 2 . 8 10 23 5 14 4 18 1 5 11 . Matter Fused 136 | . . . 3 . 2 16 12 . . . 3 1 5 1 5 3 18 8 12 4 14 3 7 19 . Heat Flow Errors 64 | . . . 1 . 1 1 6 . . 1 . 1 1 1 1 5 10 1 9 1 6 1 5 11 1 Energy Discharges 68 | . . . . . . 4 10 . . 1 1 . . . 3 2 10 6 6 4 8 1 6 6 . Parts Rejected 7 | . . . 1 . . . 1 . . . . . . . . . . . . . 1 . 1 2 1 Parts Fused 7 | . . . . . . . 1 . . . . . . . 2 . 1 . . . . . 2 1 . Data Loss (minor) 73 | . . . 2 . . 2 10 . 1 2 1 . 1 . 1 4 16 6 5 1 9 1 6 5 . Data Loss (major) 25 | . . . . . . 1 . . . 1 . . . . 1 2 4 . 1 1 5 . 4 4 1 Misfires 7 | . . . 2 . . . . . . . . . . . 2 . 2 . . 1 . . . . . Alerts 16 | . . . . . . 1 3 . . . 1 . . . 1 . 2 1 2 1 1 1 1 1 . Misdirections 7 | . . . . . . . 1 . . . . . . . . . 2 . 1 . . . . 2 1 Weapon Failures 4 | . . . . . . . . . . . . . . . . . 2 2 . . . . . . . Overload Shots . | . . . . . . . . . . . . . . . . . . . . . . . . . . Overflow Damage 5251 | . . . . . 120 282 459 56 226 . 180 . 65 . 84 671 380 88 218 153 645 117 789 255 463 Projectiles 340 | . . . . . . . . . . . . . . . . . . . . . . . 340 . . Explosions 675 | . . . . . . 70 . 56 . . 15 . . . 84 . 6 88 . . . . . . 356 Melee 4236 | . . . . . 120 212 459 . 226 . 165 . 65 . . 671 374 . 218 153 645 117 449 255 107 Knockbacks 33 | . . . . . 3 1 2 . 2 . 2 . . . . 6 2 . . 3 . . 11 1 . Impact 21 | . . . . . 3 1 2 . 2 . 2 . . . . 5 2 . . 3 . . 1 . . Kinetic 11 | . . . . . . . . . . . . . . . . . . . . . . . 10 1 . Secondary 1 | . . . . . . . . . . . . . . . . 1 . . . . . . . . . Self-Inflicted Damage 1148 | . . . . . . 78 . 303 . . . . . . 27 . 29 . . . . . . . 711 Shots 36 | . . . . . . 4 . 13 . . . . . . 2 . 2 . . . . . . . 15 Rammed 10 | . . . . 3 . . . . . . . . . . . 1 . . . . 3 . 1 2 . Targets Rammed 13 | . . . . 4 . . . 1 . . . . . . . 2 . . . . 3 . 1 2 . Kicked . | . . . . . . . . . . . . . . . . . . . . . . . . . . Crushed 3 | . . . . 1 . . . 1 . . . . . . . 1 . . . . . . . . . Highest Temperature 287 | . 9 36 139 19 132 137 241 22 10 87 . 258 187 234 157 157 246 169 244 128 287 101 225 273 99 Average Temperature 24 | . 8 17 20 3 52 20 117 10 10 55 . 134 107 122 90 71 93 110 104 39 9 59 101 108 63 Received Heat Transfer 4891 | . 156 69 312 324 246 891 84 270 190 . 144 . . . 160 267 523 28 12 50 189 30 223 617 106 Siege Activations 6 | . . . . . . . . . . . . . . . . . . . . . . . 5 1 . Total Turns 48 | . . . . . . . . . . . . . . . . . . . . . . . 38 10 . Longest Duration 13 | . . . . . . . . . . . . . . . . . . . . . . . 13 10 . Martial Activations . | . . . . . . . . . . . . . . . . . . . . . . . . . . Shielding Activations . | . . . . . . . . . . . . . . . . . . . . . . . . . . Robots Disrupted 1 | . . . . . . . . . . . . . . . . . 1 . . . . . . . . Combat Hostiles 1 | . . . . . . . . . . . . . . . . . 1 . . . . . . . . Robots Corrupted 29 | . . . . . 2 3 . . 2 . 3 . . . 2 6 5 4 . 1 1 . . . . Combat Hostiles 19 | . . . . . 2 2 . . 1 . 1 . . . 2 5 2 3 . . 1 . . . . Parts Fried 63 | . . . . . 1 6 1 . 3 . 6 . 2 . 5 10 17 6 . 1 3 . . . 2 Impact Corruptions 61 | . . . . . 2 5 3 . 5 . 4 . 1 . . 21 8 . . 5 7 . . . . Robots Melted . | . . . . . . . . . . . . . . . . . . . . . . . . . . Combat Hostiles . | . . . . . . . . . . . . . . . . . . . . . . . . . . Parts Melted 11 | . . . . . . 1 . 3 . . . . . . . . . . . . 4 . 3 . . Heat Transferred 200 | . . . . . . . . . . . . . 50 . 50 . . 100 . . . . . . . Parts Sabotaged . | . . . . . . . . . . . . . . . . . . . . . . . . . . Parts Stolen . | . . . . . . . . . . . . . . . . . . . . . . . . . . Parts Stripped 18 | . . . . . . . . . . . . . . . . . . . . . 18 . . . . Power Chain Reactions 7 | . . . . . . . . . . . 1 . 1 . 3 . 1 1 . . . . . . . Alert | -11 -10 -10 -9 -8 -7 -7 -7 -7 -5 -5 -5 -5 -5 -5 -4 -4 -4 -4 -4 -3 -3 -2 -2 -2 -1 ------- Run | Yrd Mat Min Mat Mat Fac Sto Rec Scr Fac Was Fac Upp Upp Zhi Pro Fac Ext Cet Arc Res Qua Res Tes Gar Acc Maximum Alert Level 5 | . . . . . . 2 . . . . . . . . . . 1 1 . 3 2 2 3 5 5 Low Security (%) 49 | 100 100 100 100 100 100 44 100 . 100 100 100 . . . . 100 80 36 100 30 . . 1 . . Level 1 24 | . . . . . . 28 . . . . . . . . . . 19 63 . 3 54 87 70 . . Level 2 14 | . . . . . . 27 . . . . . . . . . . . . . . 45 12 15 . . Level 3 5 | . . . . . . . . . . . . . . . . . . . . 65 . . 12 27 . Level 4 2 | . . . . . . . . . . . . . . . . . . . . . . . . 34 21 Level 5 2 | . . . . . . . . . . . . . . . . . . . . . . . . 37 1 High Security 1 | . . . . . . . . . . . . . . . . . . . . . . . . . 77 Max Security . | . . . . . . . . . . . . . . . . . . . . . . . . . . Peak Influence 2943 | 15 118 91 165 89 76 498 172 . 107 25 170 . . . . 143 394 304 196 901 482 428 737 1970 2943 Initial 1181 | . . 21 11 37 5 14 172 . . 25 . . . . . 143 52 207 94 . 480 252 200 549 1181 Average 322 | 1 50 50 85 29 18 241 30 . 21 1 51 . . . . 78 146 214 91 550 370 361 384 1383 2066 Influence Increases 14517 | 20 493 180 563 336 293 1409 247 . 327 . 364 . 125 . 580 555 1187 327 252 1374 768 593 1041 1481 2002 Destroy 0b10 Robot/C 7660 | . 300 140 360 200 180 680 80 . 180 . 180 . 100 . 520 320 680 160 80 440 420 220 720 840 860 Destroy 0b10 Robot/NC 745 | 20 45 10 40 45 20 105 60 . 40 . 15 . . . . 40 60 10 45 50 . 5 30 . 105 Destroy Leader 1372 | . 88 30 106 62 52 202 . . 50 . 42 . 10 . 30 74 80 . . 92 120 70 84 50 130 Allied During Kill 1409 | . . . . . . 261 6 . 27 . . . . . . . 155 117 125 522 . . . 42 154 Successful Hack 308 | . . . 12 14 . 13 . . 14 . 47 . . . . 59 26 . . 34 34 41 . 14 . Select Force Hacks 120 | . 30 . . . . . 90 . . . . . . . . . . . . . . . . . . Disable Machine 540 | . . . 15 15 30 30 . . . . 30 . . . . 30 60 . . 30 150 30 45 15 60 Anti-Garrison Action 600 | . . . . . . . . . . . . . . . . . . . . 150 . 200 . 250 . Destroy Structure 1298 | . . . . . 11 103 11 . 16 . 20 . . . . 32 66 40 2 56 14 27 132 195 573 Partial Spotted 30 | . . . . . . . . . . . . . . . . . 15 . . . . . . 15 . Lose Combat Pursuer 435 | . 30 . 30 . . 15 . . . . 30 . 15 . 30 . 45 . . . 30 . 30 60 120 Influence Decreases 11584 | 20 437 206 505 411 273 999 690 . 255 72 202 162 114 11 352 675 924 462 488 520 1174 684 665 244 1039 Entered New Map 2669 | . . 35 19 51 8 19 271 . . 47 . 61 . 11 . 85 56 164 142 . 374 196 157 184 789 Time Decay 7359 | 20 427 161 456 360 265 476 397 . 175 25 182 101 104 . 312 540 568 238 326 430 770 458 498 . 70 Lost Part 714 | . 10 10 30 . . 174 10 . . . 10 . 10 . 40 50 120 . . 10 30 . 10 20 180 Lost Ally 692 | . . . . . . 180 12 . 80 . 10 . . . . . 180 60 20 80 . 30 . 40 . Purge Threat 150 | . . . . . . 150 . . . . . . . . . . . . . . . . . . . Squads Dispatched 74 | . 5 . 2 2 4 8 . . 3 . 4 . . . . 4 3 . . 6 4 4 5 . 20 Investigation 16 | . 3 . . . . . . . . . 1 . . . . . 2 . . 6 3 1 . . . Extermination 17 | . . . . . 2 2 . . 1 . 1 . . . . 4 . . . . 1 3 3 . . Reinforcement 22 | . 2 . 2 2 2 3 . . 2 . 2 . . . . . 1 . . . . . . . 6 Assault 16 | . . . . . . . . . . . . . . . . . . . . . . . 2 . 14 Garrison 3 | . . . . . . 3 . . . . . . . . . . . . . . . . . . . Intercept . | . . . . . . . . . . . . . . . . . . . . . . . . . . Searches Triggered . | . . . . . . . . . . . . . . . . . . . . . . . . . . Construction Impeded 4 | . . . . . . 1 . . . . . . . . . . . . . . . . . . 3 Haulers Reinforced 5 | . . . . . . 1 . . 1 . 1 . . . . . . . . . . . . . 2 Active Scanning Responses . | . . . . . . . . . . . . . . . . . . . . . . . . . . Cargo Convoy Interrupts . | . . . . . . . . . . . . . . . . . . . . . . . . . . Stealth | -11 -10 -10 -9 -8 -7 -7 -7 -7 -5 -5 -5 -5 -5 -5 -4 -4 -4 -4 -4 -3 -3 -2 -2 -2 -1 --------- Run | Yrd Mat Min Mat Mat Fac Sto Rec Scr Fac Was Fac Upp Upp Zhi Pro Fac Ext Cet Arc Res Qua Res Tes Gar Acc Distress Signals 28 | . 1 . 3 . 1 3 1 . . . 1 . . . . 1 3 2 . 8 . . 1 . 3 Communications Jammed 3 | . . . . . . . . . . . . . . . . . . . . . . . 3 . . Distress Signals 2 | . . . . . . . . . . . . . . . . . . . . . . . 2 . . Times Spotted 569 | . 22 7 34 26 23 38 3 27 13 . 23 . 3 . 45 22 39 10 10 30 23 12 39 43 77 Peak Tracking Total 14 | . 4 3 6 5 4 6 2 7 5 . 6 . 4 . 9 6 9 5 2 6 4 3 6 5 14 Tactical Retreats 23 | . 2 . 2 . . 1 . . . . 2 . 1 . 2 . 3 . . . 1 . 2 3 4 Traps | -11 -10 -10 -9 -8 -7 -7 -7 -7 -5 -5 -5 -5 -5 -5 -4 -4 -4 -4 -4 -3 -3 -2 -2 -2 -1 ------- Run | Yrd Mat Min Mat Mat Fac Sto Rec Scr Fac Was Fac Upp Upp Zhi Pro Fac Ext Cet Arc Res Qua Res Tes Gar Acc Traps Triggered 17 | . 1 . 4 . 1 2 . . 1 . . . . . . 1 2 . . . 3 1 1 . . Indirectly 1 | . . . . . . . . . . . . . . . . . 1 . . . . . . . . Trap Hack Attempts . | . . . . . . . . . . . . . . . . . . . . . . . . . . Triggered . | . . . . . . . . . . . . . . . . . . . . . . . . . . Disarmed . | . . . . . . . . . . . . . . . . . . . . . . . . . . Reprogrammed . | . . . . . . . . . . . . . . . . . . . . . . . . . . Reused . | . . . . . . . . . . . . . . . . . . . . . . . . . . Traps Extracted . | . . . . . . . . . . . . . . . . . . . . . . . . . . Installed . | . . . . . . . . . . . . . . . . . . . . . . . . . . Triggered . | . . . . . . . . . . . . . . . . . . . . . . . . . . Machines | -11 -10 -10 -9 -8 -7 -7 -7 -7 -5 -5 -5 -5 -5 -5 -4 -4 -4 -4 -4 -3 -3 -2 -2 -2 -1 ---------- Run | Yrd Mat Min Mat Mat Fac Sto Rec Scr Fac Was Fac Upp Upp Zhi Pro Fac Ext Cet Arc Res Qua Res Tes Gar Acc Machines Disabled 53 | . . . 1 1 2 2 . 9 . . 2 . . . . 2 5 . . 3 10 2 4 6 4 Max in Single Turn 3 | . . . 1 1 1 1 . 1 . . 2 . . . . 1 3 . . 1 1 1 1 1 1 Garrison Access 5 | . . . . . . . . . . . . . . . . 1 . . . 2 1 1 . . . Garrison Relay 3 | . . . . . . . . . . . . . . . . . . . . . . . . 3 . Energy Cycler 1 | . . . . . . . . . . . . . . . . . 1 . . . . . . . . Machines Repaired . | . . . . . . . . . . . . . . . . . . . . . . . . . . Machines Dismantled . | . . . . . . . . . . . . . . . . . . . . . . . . . . Machines Sabotaged . | . . . . . . . . . . . . . . . . . . . . . . . . . . Overloaded Fab Kills . | . . . . . . . . . . . . . . . . . . . . . . . . . . Hacking | -11 -10 -10 -9 -8 -7 -7 -7 -7 -5 -5 -5 -5 -5 -5 -4 -4 -4 -4 -4 -3 -3 -2 -2 -2 -1 --------- Run | Yrd Mat Min Mat Mat Fac Sto Rec Scr Fac Was Fac Upp Upp Zhi Pro Fac Ext Cet Arc Res Qua Res Tes Gar Acc Machines Accessed 83 | . 5 . 4 5 . 7 5 3 1 . 6 . 1 4 1 6 10 . . 6 8 8 1 2 . Terminals 52 | . 4 . 3 4 . 5 2 . . . 5 . . . . 4 10 . . 4 4 5 . 2 . Fabricators 1 | . . . . . . . . . 1 . . . . . . . . . . . . . . . . Repair Stations 2 | . . . . . . . . . . . . . . . . . . . . . 2 . . . . Recycling Units 7 | . 1 . . . . 1 3 . . . 1 . . . 1 . . . . . . . . . . Scanalyzers 7 | . . . 1 1 . . . . . . . . . . . 1 . . . 1 1 2 . . . Garrison Access 6 | . . . . . . 1 . . . . . . . . . 1 . . . 1 1 1 1 . . Total Hacks 212 | . 10 . 17 14 . 14 5 24 3 . 13 . 4 17 2 19 18 . . 13 15 18 2 4 . Successful 128 | . 3 . 12 9 . 4 4 24 3 . 8 . 4 17 . 13 6 . . 6 7 6 1 1 . Failed 83 | . 7 . 4 5 . 10 1 . . . 5 . . . 2 6 12 . . 7 8 12 1 3 . Catastrophic 24 | . 1 . 1 3 . 3 1 . . . 1 . . . . . 6 . . 3 1 3 . 1 . Database Lockouts 1 | . . . 1 . . . . . . . . . . . . . . . . . . . . . . Manual 83 | . 10 . 7 8 . 7 5 . 1 . 8 . . . . 7 4 1 . 9 5 10 . 1 . Terminals 111 | . 9 . 8 10 . 9 2 . . . 12 . . . . 13 18 . . 11 5 10 . 4 . Fabricators 3 | . . . . . . . . . 3 . . . . . . . . . . . . . . . . Repair Stations 8 | . . . . . . . . . . . . . . . . . . . . . 8 . . . . Recycling Units 9 | . 1 . . . . 2 3 . . . 1 . . . 2 . . . . . . . . . . Scanalyzers 25 | . . . 9 4 . . . . . . . . . . . 4 . . . 1 1 6 . . . Garrison Access 11 | . . . . . . 3 . . . . . . . . . 2 . . . 1 1 2 2 . . Terminal Hacks 77 | . 2 . 4 4 . 3 1 24 . . 3 . 4 17 . 6 4 . . 3 . 1 . 1 . Record 32 | . . . . . . . . 23 . . . . 4 5 . . . . . . . . . . . Part Schematic 9 | . 2 . . 1 . . . . . . . . . 4 . 2 . . . . . . . . . Robot Analysis 4 | . . . . . . . . . . . . . . 4 . . . . . . . . . . . Prototype ID Bank 4 | . . . . . . . . . . . . . . 4 . . . . . . . . . . . Open Door 7 | . . . . . . 2 . . . . . . . . . 1 4 . . . . . . . . Open DSF 1 | . . . . . . . . . . . 1 . . . . . . . . . . . . . . Branch Access Points 5 | . . . 1 1 . . . . . . 1 . . . . 1 . . . . . 1 . . . Emergency Access Points 1 | . . . . . . . . . . . . . . . . . . . . . . . . 1 . Fabricator Index 2 | . . . . . . . . . . . 1 . . . . 1 . . . . . . . . . Unreport Threat 1 | . . . . . . 1 . . . . . . . . . . . . . . . . . . . Hauler Manifests 3 | . . . 1 1 . . . . . . . . . . . . . . . 1 . . . . . Registered Components 4 | . . . 1 1 . . . . . . . . . . . 1 . . . 1 . . . . . Zone Layout 3 | . . . 1 . . . 1 . . . . . . . . . . . . 1 . . . . . Proto ID Catalog 1 | . . . . . . . . 1 . . . . . . . . . . . . . . . . . Fabricator Hacks 2 | . . . . . . . . . 2 . . . . . . . . . . . . . . . . Load Schematic 1 | . . . . . . . . . 1 . . . . . . . . . . . . . . . . Build 1 | . . . . . . . . . 1 . . . . . . . . . . . . . . . . Repair Station Hacks 4 | . . . . . . . . . . . . . . . . . . . . . 4 . . . . Scan Component 2 | . . . . . . . . . . . . . . . . . . . . . 2 . . . . Repair 2 | . . . . . . . . . . . . . . . . . . . . . 2 . . . . Recycling Unit Hacks 1 | . . . . . . 1 . . . . . . . . . . . . . . . . . . . Retrieve Components 1 | . . . . . . 1 . . . . . . . . . . . . . . . . . . . Scanalyzer 17 | . . . 7 4 . . . . . . . . . . . 4 . . . . . 2 . . . Insert Component 6 | . . . 3 . . . . . . . . . . . . 2 . . . . . 1 . . . Analyze 5 | . . . 3 . . . . . . . . . . . . 2 . . . . . . . . . Retrieve Study 6 | . . . 1 4 . . . . . . . . . . . . . . . . . 1 . . . Garrison Access Hacks 4 | . . . . . . . . . . . . . . . . 1 . . . 1 1 . 1 . . Unlock Access 1 | . . . . . . . . . . . . . . . . . . . . . . . 1 . . Seal Access 3 | . . . . . . . . . . . . . . . . 1 . . . 1 1 . . . . Unauthorized Hacks 22 | . 1 . 1 1 . . 3 . 1 . 4 . . . . 2 2 . . 2 2 3 . . . Terminals 16 | . . . 1 1 . . . . . . 4 . . . . 2 2 . . 2 2 2 . . . Assimilate 2 | . . . . . . . . . . . 1 . . . . 1 . . . . . . . . . Botnet 14 | . . . 1 1 . . . . . . 3 . . . . 1 2 . . 2 2 2 . . . Fabricators 1 | . . . . . . . . . 1 . . . . . . . . . . . . . . . . Haulers 1 | . . . . . . . . . 1 . . . . . . . . . . . . . . . . Repair Stations . | . . . . . . . . . . . . . . . . . . . . . . . . . . Recycling Units 4 | . 1 . . . . . 3 . . . . . . . . . . . . . . . . . . Tunnel 4 | . 1 . . . . . 3 . . . . . . . . . . . . . . . . . . Scanalyzers . | . . . . . . . . . . . . . . . . . . . . . . . . . . Garrison Access 1 | . . . . . . . . . . . . . . . . . . . . . . 1 . . . Jam 1 | . . . . . . . . . . . . . . . . . . . . . . 1 . . . Data Cores Recovered 1 | . . . 1 . . . . . . . . . . . . . . . . . . . . . . Used 1 | . . . 1 . . . . . . . . . . . . . . . . . . . . . . Hacking Detections 52 | . 3 . 3 5 . 5 1 . 1 . 4 . . . 1 2 9 . . 4 5 6 1 2 . Full Trace Events 7 | . 2 . . . . . . . . . 1 . . . . . 2 . . . 2 . . . . Feedback Events 1 | . . . . . . . . . . . 1 . . . . . . . . . . . . . . Corruption 1 | . . . . . . . . . . . 1 . . . . . . . . . . . . . . Feedback Blocked . | . . . . . . . . . . . . . . . . . . . . . . . . . . Robot Schematics Acquired 2 | . . . . . . . . . . . . . . . . . . . . . . . 2 . . Robots Built . | . . . . . . . . . . . . . . . . . . . . . . . . . . Authchips . | . . . . . . . . . . . . . . . . . . . . . . . . . . Time . | . . . . . . . . . . . . . . . . . . . . . . . . . . Total Robot Build Rating . | . . . . . . . . . . . . . . . . . . . . . . . . . . Part Schematics Acquired 17 | . 2 . 3 1 . . . . . . . . . 4 . 4 . . . . . . 3 . . Parts Built 2 | . . . . . . . . . 2 . . . . . . . . . . . . . . . . Authchips 1 | . . . . . . . . . 1 . . . . . . . . . . . . . . . . Time 36 | . . . . . . . . . 36 . . . . . . . . . . . . . . . . Total Part Build Rating 6 | . . . . . . . . . 6 . . . . . . . . . . . . . . . . Part Studies Acquired 6 | . . . 1 4 . . . . . . . . . . . . . . . . . 1 . . . Parts Repaired 2 | . . . . . . . . . . . . . . . . . . . . . 2 . . . . Time 176 | . . . . . . . . . . . . . . . . . . . . . 176 . . . . Parts Recycled . | . . . . . . . . . . . . . . . . . . . . . . . . . . Recycled Matter . | . . . . . . . . . . . . . . . . . . . . . . . . . . Retrieved Matter . | . . . . . . . . . . . . . . . . . . . . . . . . . . Retrieved Components . | . . . . . . . . . . . . . . . . . . . . . . . . . . Parts Scanalyzed 5 | . . . 3 . . . . . . . . . . . . 2 . . . . . . . . . Part Schematics Acquired 5 | . . . 3 . . . . . . . . . . . . 2 . . . . . . . . . Parts Damaged 1 | . . . . . . . . . . . . . . . . 1 . . . . . . . . . Bothacking | -11 -10 -10 -9 -8 -7 -7 -7 -7 -5 -5 -5 -5 -5 -5 -4 -4 -4 -4 -4 -3 -3 -2 -2 -2 -1 ------------ Run | Yrd Mat Min Mat Mat Fac Sto Rec Scr Fac Was Fac Upp Upp Zhi Pro Fac Ext Cet Arc Res Qua Res Tes Gar Acc Used RIF Installer 1 | . . . . . . . . . . . . . . . . . . . . . . . . 1 . Robots Hacked 1 | . . . . . . . . . 1 . . . . . . . . . . . . . . . . Non-combat 1 | . . . . . . . . . 1 . . . . . . . . . . . . . . . . Combat . | . . . . . . . . . . . . . . . . . . . . . . . . . . Robot Hacks Applied 1 | . . . . . . . . . 1 . . . . . . . . . . . . . . . . find_chute 1 | . . . . . . . . . 1 . . . . . . . . . . . . . . . . Relay Couplers Released 16 | . . . . . . . . . . . . . . . . . . . . . . . 3 13 . Machine Destruction 13 | . . . . . . . . . . . . . . . . . . . . . . . . 13 . Programmers 3 | . . . . . . . . . . . . . . . . . . . . . . . 3 . . Fabnet Peak Effective % . | . . . . . . . . . . . . . . . . . . . . . . . . . . Robots Rewired 9 | . . . . . . . 5 . . . . . . . . . 2 . . . . . . 2 . Allies Hacked 2 | . . . . . . 1 . . 1 . . . . . . . . . . . . . . . . Hacks Repelled . | . . . . . . . . . . . . . . . . . . . . . . . . . . Allies | -11 -10 -10 -9 -8 -7 -7 -7 -7 -5 -5 -5 -5 -5 -5 -4 -4 -4 -4 -4 -3 -3 -2 -2 -2 -1 -------- Run | Yrd Mat Min Mat Mat Fac Sto Rec Scr Fac Was Fac Upp Upp Zhi Pro Fac Ext Cet Arc Res Qua Res Tes Gar Acc Total Allies 51 | . . . . . . 10 5 1 5 . 1 . 2 . 1 1 15 5 . . . . . 2 3 Largest Group 10 | . . . . . . 10 5 5 5 . 1 . 2 . . 1 5 7 7 5 . . . 2 3 Highest-Rated Group 676 | . . . . . . 173 102 101 238 . 26 . 62 . . 10 347 676 676 466 . . . 238 379 Highest-Rated Ally 159 | . . . . . . 29 34 34 50 . 26 . 31 . . 10 159 159 152 96 . . . 119 135 Total Orders 8 | . . . . . . . 2 2 . . . . . . . . . . . . . 4 . . . STAY 2 | . . . . . . . . 2 . . . . . . . . . . . . . . . . . FOLLOW 1 | . . . . . . . 1 . . . . . . . . . . . . . . . . . . TUNNEL 1 | . . . . . . . 1 . . . . . . . . . . . . . . . . . . EXPLORE 3 | . . . . . . . . . . . . . . . . . . . . . . 3 . . . RETURN 1 | . . . . . . . . . . . . . . . . . . . . . . 1 . . . Ally Attacks 431 | . . . . . . 104 3 5 22 . . . 3 . . . 89 35 35 64 . . . 22 49 Total Damage 11857 | . . . . . . 1243 133 114 445 . . . 22 . . . 2717 1077 1390 2110 . . . 975 1631 Kills 76 | . . . . . . 11 1 1 4 . . . . . . . 19 4 4 16 . . . 6 10 Allies Corrupted 3 | . . . . . . 1 . . . . . . . . . . 1 . . . . . . 1 . Allies Melted 14 | . . . . . . . . 13 . . . . . . 1 . . . . . . . . . . Intel | -11 -10 -10 -9 -8 -7 -7 -7 -7 -5 -5 -5 -5 -5 -5 -4 -4 -4 -4 -4 -3 -3 -2 -2 -2 -1 ------- Run | Yrd Mat Min Mat Mat Fac Sto Rec Scr Fac Was Fac Upp Upp Zhi Pro Fac Ext Cet Arc Res Qua Res Tes Gar Acc Active Infowar (turns) 26798 | 61 1046 . . 266 1015 837 1427 4637 511 842 432 278 663 162 1021 1208 1344 18 . 1052 5893 1155 1333 1113 484 Sensors 23079 | . . . . . 1009 837 1425 4637 511 842 421 278 654 162 1021 1143 1235 18 . 1045 5668 1066 623 . 484 Structural 2310 | . . . . . 6 . . 16 . . 11 . 9 . . 211 109 . . 389 607 558 392 2 . Traps 1 | . . . . . . . 1 . . . . . . . . . . . . . . . . . . Seismic 1264 | 61 1046 . . 157 . . . . . . . . . . . . . . . . . . . . . T.N.C. 109 | . . . . 109 . . . . . . . . . . . . . . . . . . . . . Jamming 6948 | . . . . . . . . . . . . . . . 4 232 . . . . 3191 1075 1333 1113 . ECM 1 | . . . . . . . 1 . . . . . . . . . . . . . . . . . . Robot Analysis Total 4 | . . . . . . . . . . . . . . 4 . . . . . . . . . . . Derelict Logs Recovered 4 | . . . . . . . . . . . . 1 2 . 1 . . . . . . . . . . Drone Launches 3 | . . . . . . . . . . . . . . . . . . . . . . 3 . . . Drone Recoveries . | . . . . . . . . . . . . . . . . . . . . . . . . . . Exploration | -11 -10 -10 -9 -8 -7 -7 -7 -7 -5 -5 -5 -5 -5 -5 -4 -4 -4 -4 -4 -3 -3 -2 -2 -2 -1 ------------- Run | Yrd Mat Min Mat Mat Fac Sto Rec Scr Fac Was Fac Upp Upp Zhi Pro Fac Ext Cet Arc Res Qua Res Tes Gar Acc Turns Passed 35586 | 142 1233 350 1299 1327 1140 1447 1434 4770 759 847 557 283 683 165 1021 1615 1710 510 874 1505 7170 1155 1333 1617 640 Spaces Moved 16076 | 64 577 188 743 549 428 478 628 2275 270 581 332 229 510 129 625 589 676 178 383 694 3021 515 474 680 260 Core 167 | 1 . . . . . . . 120 . . . . . . . . . . . . . . . . 46 Treads 12201 | 63 243 . 140 549 428 478 628 2155 199 . . . . . . 483 676 178 383 694 3021 515 474 680 214 Legs . | . . . . . . . . . . . . . . . . . . . . . . . . . . Wheels 3708 | . 334 188 603 . . . . . 71 581 332 229 510 129 625 106 . . . . . . . . . Hover . | . . . . . . . . . . . . . . . . . . . . . . . . . . Flight . | . . . . . . . . . . . . . . . . . . . . . . . . . . Fastest Speed 50 | 50 140 135 105 160 200 200 200 50 99 99 120 120 120 120 120 120 156 168 160 165 158 154 156 156 50 Average Speed 171 | 158 169 148 125 193 200 200 201 198 192 112 120 120 120 120 122 181 178 169 167 165 187 175 156 163 139 Slowest Speed 320 | 160 320 215 320 200 200 208 208 209 220 120 120 120 120 120 180 252 255 170 170 167 253 232 156 243 244 Overloaded Moves . | . . . . . . . . . . . . . . . . . . . . . . . . . . Propulsion Burnouts . | . . . . . . . . . . . . . . . . . . . . . . . . . . Robots Hopped . | . . . . . . . . . . . . . . . . . . . . . . . . . . Potential Cave-ins 10 | . . . . . . . . . . . . . . . . . . . . . . . . . 10 Cave-ins Triggered . | . . . . . . . . . . . . . . . . . . . . . . . . . . Teleports 3 | . . . . . . . . . . . . . . . . . . . . . 1 . . . 2 Exploration Rate (%) 49 | 4 89 39 40 43 15 75 68 87 6 97 11 53 49 60 59 16 59 57 96 22 90 18 47 84 13 Regions Visited 25 Branch Regions 13 Pre-discovered Areas 12 | . 1 . . . . . 3 5 . . . . . 3 . . . . . . . . . . . Known Exits Taken 18 | . . . . 1 1 1 1 1 . . 1 1 1 1 1 1 1 1 1 1 1 1 1 . . Unknown Exits Taken 4 | 1 1 1 1 . . . . . . . . . . . . . . . . . . . . . . Scrap Searched 10 | . . . . . . . . 3 . . . 3 3 . 1 . . . . . . . . . . Spaces Dug 74 | . . . . . 11 1 1 1 2 . 5 1 1 . . 16 1 . . 7 7 9 8 . 3 Terrain Destroyed 1037 | . . . . . 11 125 1 270 2 . 10 1 6 . 137 16 33 27 . 12 7 9 50 43 277 Melee 74 | . . . . . 11 1 1 1 2 . 5 1 1 . . 16 1 . . 7 7 9 8 . 3 Projectile 18 | . . . . . . . . . . . . . . . . . 4 . . 5 . . 9 . . AOE 909 | . . . . . . 124 . 269 . . 5 . 5 . 137 . 28 27 . . . . . 40 274 Terrain Rammed . | . . . . . . . . . . . . . . . . . . . . . . . . . . Walls Destroyed . | . . . . . . . . . . . . . . . . . . . . . . . . . . Machines Disabled . | . . . . . . . . . . . . . . . . . . . . . . . . . . Actions | -11 -10 -10 -9 -8 -7 -7 -7 -7 -5 -5 -5 -5 -5 -5 -4 -4 -4 -4 -4 -3 -3 -2 -2 -2 -1 --------- Run | Yrd Mat Min Mat Mat Fac Sto Rec Scr Fac Was Fac Upp Upp Zhi Pro Fac Ext Cet Arc Res Qua Res Tes Gar Acc Total 21889 | 83 726 223 1000 691 631 779 748 2509 440 800 425 236 560 139 821 946 1041 379 581 965 4302 675 822 931 436 Wait 2725 | . 54 14 103 32 89 85 26 109 78 110 29 1 24 1 124 105 174 128 131 142 890 71 112 66 27 Move 16053 | 63 576 187 742 548 427 477 627 2275 270 580 331 228 509 128 624 588 675 177 382 693 3020 514 474 679 259 Hop . | . . . . . . . . . . . . . . . . . . . . . . . . . . Pick Up 437 | 3 21 1 30 16 17 24 5 43 13 48 4 1 3 3 9 27 27 13 10 18 60 5 15 9 12 Fast Attach 182 | 7 3 1 8 2 2 8 4 4 6 . 1 2 . 2 . 19 10 6 10 17 35 10 15 7 3 Attach 159 | . 1 1 3 4 4 18 3 8 9 3 . . 1 . 6 14 13 4 6 6 16 2 13 7 17 Detach 44 | . 2 1 . . . 1 . . 6 . . . . . . 5 7 . 3 2 4 . 8 2 3 Swap 425 | . 6 . 15 7 21 33 2 7 9 9 25 . 7 1 19 52 26 16 9 15 58 22 37 12 17 Drop 522 | . 8 . 36 14 19 14 8 42 9 50 3 3 2 4 8 38 27 23 15 31 100 12 30 13 13 Fire 418 | 10 55 18 62 63 9 18 . 16 1 . 2 . 10 . 24 . 21 12 . 29 . . 22 5 41 Melee 824 | . . . 1 1 43 101 29 5 39 . 30 1 4 . 6 96 52 . 15 12 116 39 95 113 26 Ram . | . . . . . . . . . . . . . . . . . . . . . . . . . . Kick . | . . . . . . . . . . . . . . . . . . . . . . . . . . Crush 12 | . . . . 4 . . . . . . . . . . . 2 . . . . 3 . 1 2 . Escape Stasis 11 | . . . . . . . . . . . . . . . . . . . . . . . . . 11 Rewire 76 | . . . . . . . 44 . . . . . . . . . 9 . . . . . . 16 7 Trap . | . . . . . . . . . . . . . . . . . . . . . . . . . . Miscellaneous 1 | . . . . . . . . . . . . . . . 1 . . . . . . . . . . Route ------- -11/Scrapyard -10/Materials (discovered 4 exits: *Mat x3 / [*Min]) -10/Mines -9/Materials (discovered 3 exits: *Mat / Min x2) -8/Materials -7/Factory -7/Storage (discovered 2 exits: [*Fac] / *Rec) -7/Recycling -7/Scraptown (discovered 2 exits: *Fac x2) -5/Factory (discovered 6 exits: Fac x4 / *Upp x2) -5/Waste -5/Factory (discovered 3 exits: *Fac / *Upp x2) -5/Upper Caves -5/Upper Caves (discovered 2 exits: *Fac / *Zhi) -5/Zhirov -4/Proximity Caves -4/Factory (discovered 4 exits: *Upp x2 / *Ext x2) -4/Extension (discovered 3 exits: *Res x2 / *Cet) -4/Cetus (discovered 2 exits: *Res / *Arc) -4/Archives (discovered 3 exits: *Res / [*Hub x2]) -3/Research (discovered 3 exits: Arm / *Qua x2) -3/Quarantine -2/Research (discovered 4 exits: *Acc x2 / *Tes x2) -2/Testing -2/Garrison (discovered 3 exits: *Acc x3) -1/Access (discovered 2 exits: *Sur / Com) To Epsilon Eridani History --------- Turn | Location | Event 7 | -11/Scrapyard | Discovered new exit (range 15) 143 | -11/Scrapyard | Entered Materials 314 | -10/Materials | Build established: Mutant 389 | -10/Materials | Discovered new exit (range 3) 833 | -10/Materials | Discovered new exit (range 11) 940 | -10/Materials | Discovered new exit (range 7) 999 | -10/Materials | Discovered new exit (range 5) 1376 | -10/Materials | Entered Mines 1702 | -10/Mines | Discovered new exit (range 4) 1726 | -10/Mines | Entered Materials 1726 | -9/Materials | Evolved 2 slots: Propulsion x2 2177 | -9/Materials | Build established: Scavenger-Mutant 2279 | -9/Materials | Identified exit to Mines 2547 | -9/Materials | Central database locked down 2896 | -9/Materials | Discovered new exit (range 3) 3025 | -9/Materials | Entered another Materials area 3025 | -8/Materials | Evolved 2 slots: Propulsion x1, Utility x1 3320 | -8/Materials | Discovered new exit (range 15) 3431 | -8/Materials | Identified exit to Factory 3582 | -8/Materials | Build established: Hauler-Mutant 4352 | -8/Materials | Entered Factory 4352 | -7/Factory | Evolved 2 slots: Utility x2 5019 | -7/Factory | Build established: Hauler-Gladiator 5329 | -7/Factory | Discovered new exit (range 12) 5393 | -7/Factory | Identified exit to Storage 5492 | -7/Factory | Entered Storage 5591 | -7/Storage | Lost 5 parts (3n1u1w) 5671 | -7/Storage | Found Prototype Launcher 5671 | -7/Storage | Identified Rocket Array 5675 | -7/Storage | Found Rocket Array 5678 | -7/Storage | Found Rocket Array 5722 | -7/Storage | Assisted by bots powering up and referring to "LRC-V3" 6023 | -7/Storage | Build established: Commander-Mutant 6233 | -7/Storage | Garrison activated, responded to threat 6236 | -7/Storage | Lost 3 parts (3n) 6385 | -7/Storage | Discovered new exit (range 16) 6493 | -7/Storage | Build established: Hauler-Mutant 6718 | -7/Storage | Core integrity fell below 50% 6721 | -7/Storage | System corruption reached 10% 6759 | -7/Storage | Lost 5 parts (1p1n2u1w) 6786 | -7/Storage | Used back door to open Recycling access 6786 | -7/Storage | Discovered new exit (range 5) 6899 | -7/Storage | Lost 4 parts (3n1u) 6937 | -7/Storage | Identified exit to Recycling 6939 | -7/Storage | Entered Recycling 8322 | -7/Recycling | Scanned before Scraplab entrance 8350 | -7/Recycling | Entered Scraplab 8366 | -7/Recycling | Discovered new exit (range 2) 8366 | -7/Recycling | Identified exit to Scraptown 8373 | -7/Recycling | Entered Scraptown 8373 | -7/Scraptown | Accompanied by 4 allies 8373 | -7/Scraptown | System corruption cleaned by C-Scrubber 8380 | -7/Scraptown | System corruption cleaned by C-Scrubber 8882 | -7/Scraptown | Heard Great Nut preacher, LISTEN AND RECITE! 9249 | -7/Scraptown | Visited Comm Corps 9301 | -7/Scraptown | Visited SPCMW 9461 | -7/Scraptown | Visited Symbiants 9488 | -7/Scraptown | Visited Junk Repository 9679 | -7/Scraptown | Visited Fellowship of the Rings 9692 | -7/Scraptown | Visited Spacefarers 9773 | -7/Scraptown | Visited UFD Registry 9773 | -7/Scraptown | Registered with UFD as "Flakdrive" 9829 | -7/Scraptown | Visited Curators Association 10118 | -7/Scraptown | Visited Botcube Research 10157 | -7/Scraptown | Visited Scrap Suit Storage 10185 | -7/Scraptown | Visited Derelict Rescue Squad 10243 | -7/Scraptown | Found DRS Beacon 10271 | -7/Scraptown | Visited Scrapoid Pod Storage 10348 | -7/Scraptown | Visited Abandonware Association 10371 | -7/Scraptown | Learned abandonware demo "REBOOT5.EXE" 10420 | -7/Scraptown | Visited Cartography Club 10547 | -7/Scraptown | Discovered new exit (range 5) 10756 | -7/Scraptown | Learned location of Recycling (-7) 10756 | -7/Scraptown | Learned location of Lower Caves (-6) 10756 | -7/Scraptown | Learned 8 Factory zone layouts 10756 | -7/Scraptown | Learned 12 Factory zone layouts 10756 | -7/Scraptown | Learned location of Armory (-3) 10756 | -7/Scraptown | Learned 20 Factory zone layouts 10756 | -7/Scraptown | Learned 8 Access zone layouts 10756 | -7/Scraptown | Learned 16 Lower Caves zone layouts 10756 | -7/Scraptown | Learned 8 Research zone layouts 10756 | -7/Scraptown | Learned 24 Upper Caves zone layouts 10756 | -7/Scraptown | Learned 24 Proximity Caves zone layouts 10756 | -7/Scraptown | Learned 12 Proximity Caves zone layouts 10756 | -7/Scraptown | Learned location of 1 exit from Factory 10756 | -7/Scraptown | Learned location of 1 exit from Upper Caves 10756 | -7/Scraptown | Identified exit to Factory 10771 | -7/Scraptown | Found Deep Structural Scanner 11051 | -7/Scraptown | Visited Science Guys 11645 | -7/Scraptown | Found Scrapoid Pod 12005 | -7/Scraptown | Lrg. Botcube activated 12009 | -7/Scraptown | Lrg. Botcube completed mutation into wheeled form (unarmed) 12708 | -7/Scraptown | Met Optimus 12708 | -7/Scraptown | Accepted into 0bPrime 12843 | -7/Scraptown | Civil war broke out across Scraptown 12850 | -7/Scraptown | Found Vmp. Humpback 12870 | -7/Scraptown | Found Surveybot 24 Chip 12956 | -7/Scraptown | Found Voltaic Drivehammer 13013 | -7/Scraptown | Optimus destroyed in the chaos of civil war 13054 | -7/Scraptown | Lost 11 allies 13121 | -7/Scraptown | Lost 6 allies 13135 | -7/Scraptown | Destroyed 9 combat bots 13142 | -7/Scraptown | Lost 3 parts (3n) 13143 | -7/Scraptown | Entered Factory 13143 | -5/Factory | Evolved 4 slots: Propulsion x1, Utility x1, Weapon x2 13144 | -5/Factory | Identified exit to Factory 13145 | -5/Factory | Identified exit to Upper Caves 13422 | -5/Factory | Fabricated Actuator Array (x2) 13740 | -5/Factory | Scrapoid Pod released 05F06-D (x5) 13799 | -5/Factory | Found Scrap Suit 13799 | -5/Factory | P-70 Sage assimilated allied 05F06-D 13836 | -5/Factory | Lost 4 allies 13902 | -5/Factory | Sucked down chute 13902 | -5/Factory | Entered Waste 13902 | -5/Waste | The area was eerily silent 14367 | -5/Waste | Build established: Hauler-Scrapper 14434 | -5/Waste | Discovered new exit (range 10) 14740 | -5/Waste | Identified exit to Factory 14749 | -5/Waste | Entered Factory 15112 | -5/Factory | Discovered exit to Factory (range 14) 15306 | -5/Factory | Entered Upper Caves 15307 | -5/Upper Caves | Identified exit to Upper Caves 15421 | -5/Upper Caves | Learned Factory garrison access intel 15589 | -5/Upper Caves | Entered another Upper Caves area 15592 | -5/Upper Caves | Discovered new exit (range 128) 15666 | -5/Upper Caves | Discovered exit to Factory (range 3) 15731 | -5/Upper Caves | Encountered a Warlord checkpoint 15741 | -5/Upper Caves | Learned Factory terminal intel 15824 | -5/Upper Caves | Learned Research terminal intel 15827 | -5/Upper Caves | A Commander dispatched an escort 16221 | -5/Upper Caves | Identified exit to Zhirov 16272 | -5/Upper Caves | Entered Zhirov 16272 | -5/Zhirov | Discovered new exit (range 3) 16294 | -5/Zhirov | Met Zhirov 16320 | -5/Zhirov | Learned location of Testing (-2) 16328 | -5/Zhirov | Zhirov requested help retrieving the SGEMP Prototype 16350 | -5/Zhirov | Found Alien Artifact 16365 | -5/Zhirov | Found Alien Artifact 16365 | -5/Zhirov | Identified Integrated Dissipator 16365 | -5/Zhirov | Installed Integrated Dissipator, increased core heat dissipation (+20) 16434 | -5/Zhirov | Identified exit to Proximity Caves 16437 | -5/Zhirov | Entered Proximity Caves 16439 | -4/Proximity Caves | Greeted by an Infiltrator in a former 0b10 base 16539 | -4/Proximity Caves | Former 0b10 base attacked by MAIN.C 16797 | -4/Proximity Caves | Destroyed 12 combat bots 16924 | -4/Proximity Caves | Lost 15 allies 16937 | -4/Proximity Caves | 0b10 base defense nominally successful 17123 | -4/Proximity Caves | Activated DRS Beacon 17230 | -4/Proximity Caves | System corruption reached 10% 17292 | -4/Proximity Caves | Learned Research trap positions 17458 | -4/Proximity Caves | Entered Factory 17458 | -4/Factory | Evolved 2 slots: Propulsion x2 17459 | -4/Factory | Loaded intel: 28 terminal locations 17460 | -4/Factory | Loaded intel: 4 garrison access locations 17698 | -4/Factory | Identified exit to Upper Caves 17698 | -4/Factory | Identified exit to Extension 17934 | -4/Factory | Build established: Hauler-Mutant 18364 | -4/Factory | Build established: Hauler-Gladiator 18504 | -4/Factory | System corruption reached 10% 19073 | -4/Factory | Entered Extension 19296 | -4/Extension | Rescued a captive Derelict 19298 | -4/Extension | Rescued a captive Derelict 19659 | -4/Extension | Rescued a captive Derelict 19659 | -4/Extension | Rescued a captive Derelict 19665 | -4/Extension | Rescued a captive Derelict 19672 | -4/Extension | Rescued a captive Derelict 19728 | -4/Extension | Spotted B-86 Titan 19762 | -4/Extension | Spotted B-86 Titan 19782 | -4/Extension | Allies destroyed B-86 Titan 19814 | -4/Extension | Lost 3 allies 19831 | -4/Extension | Allies destroyed B-86 Titan 19853 | -4/Extension | Lost 6 parts (2n1u3w) 19881 | -4/Extension | Rescued a captive Derelict 19895 | -4/Extension | System corruption reached 30% 20083 | -4/Extension | Lost 3 parts (1n1u1w) 20142 | -4/Extension | Build established: Hauler-Mutant 20323 | -4/Extension | Energy Cycler disabled 20323 | -4/Extension | Rescued a captive Derelict 20323 | -4/Extension | Rescued a captive Derelict 20323 | -4/Extension | Rescued a captive Derelict 20324 | -4/Extension | Rescued a captive Derelict 20324 | -4/Extension | Rescued a captive Derelict 20327 | -4/Extension | Rescued a captive Derelict 20329 | -4/Extension | Rescued a captive Derelict 20334 | -4/Extension | Rescued a captive Derelict 20405 | -4/Extension | Rescued A7 20519 | -4/Extension | Discovered new exit (range 15) 20540 | -4/Extension | Core integrity fell below 50% 20714 | -4/Extension | Build established: Hauler-Tank 20748 | -4/Extension | Discovered new exit (range 16) 20748 | -4/Extension | Discovered new exit (range 16) 20779 | -4/Extension | Identified exit to Cetus 20783 | -4/Extension | Entered Cetus 20783 | -4/Cetus | Accompanied by 5 allies (A7) 20788 | -4/Cetus | Acquired a Cetus Manufacturing Module code from A7 20818 | -4/Cetus | Spotted Cetus Guard 20818 | -4/Cetus | Spotted Cetus Guard 20819 | -4/Cetus | Spotted Cetus Guard 20820 | -4/Cetus | Spotted Cetus Guard 20827 | -4/Cetus | Attached CPS modules to Cetus Guard 20828 | -4/Cetus | Allies destroyed Cetus Guard 20829 | -4/Cetus | Attached CPS modules to Cetus Guard 20832 | -4/Cetus | Destroyed Cetus Guard 20835 | -4/Cetus | Allies destroyed Cetus Guard 20840 | -4/Cetus | Allies destroyed Cetus Guard 20863 | -4/Cetus | Lost 3 allies 20963 | -4/Cetus | Started Cetus Manufacturing Module 20983 | -4/Cetus | Discovered new exit (range 15) 20988 | -4/Cetus | Manufactured an Enhanced Grunt 21013 | -4/Cetus | Manufactured an Enhanced Grunt 21038 | -4/Cetus | Manufactured an Enhanced Grunt 21063 | -4/Cetus | Manufactured an Enhanced Grunt 21088 | -4/Cetus | Manufactured an Enhanced Grunt 21106 | -4/Cetus | Spotted Cetus Guard 21106 | -4/Cetus | Spotted Cetus Guard 21108 | -4/Cetus | Spotted Cetus Guard 21108 | -4/Cetus | Spotted Cetus Guard 21121 | -4/Cetus | Destroyed Cetus Guard 21121 | -4/Cetus | Destroyed Cetus Guard 21127 | -4/Cetus | Build established: Hauler-Mutant 21131 | -4/Cetus | Allies destroyed Cetus Guard 21131 | -4/Cetus | Destroyed Cetus Guard 21137 | -4/Cetus | Discovered new exit (range 16) 21147 | -4/Cetus | Met Revision 17 21268 | -4/Cetus | Identified exit to Archives 21293 | -4/Cetus | Entered Archives 21293 | -4/Archives | Accompanied by 7 allies (A7) 21499 | -4/Archives | Discovered new exit (range 16) 21519 | -4/Archives | Discovered new exit (range 16) 21770 | -4/Archives | Discovered new exit (range 15) 22040 | -4/Archives | Identified exit to Research 22167 | -4/Archives | Entered Research 22167 | -3/Research | Accompanied by 5 allies 22167 | -3/Research | Evolved 2 slots: Power x2 22168 | -3/Research | Identified exit to Armory 22169 | -3/Research | Identified exit to Quarantine 22170 | -3/Research | Loaded intel: 117 trap records 22171 | -3/Research | Loaded intel: 23 terminal locations 22367 | -3/Research | Revision forces began assault on 0b10 22490 | -3/Research | Build established: Scavenger-Assassin 22508 | -3/Research | Met up with Revision 17++ 22533 | -3/Research | Watched by a mysterious "MATRIX" hacker 22800 | -3/Research | Build established: Scavenger-Tank 22832 | -3/Research | Spotted B-90 Cyclops 22838 | -3/Research | Allies destroyed B-90 Cyclops 22855 | -3/Research | Lost 3 allies 22867 | -3/Research | Research terminal network offline 23127 | -3/Research | Found Prototype Processor 23127 | -3/Research | Identified Exp. Signal Interpreter 23331 | -3/Research | Spotted Striker 23331 | -3/Research | Spotted Executioner 23336 | -3/Research | Destroyed Executioner 23366 | -3/Research | Found Prototype Processor 23366 | -3/Research | Identified Exp. Targeting Computer 23375 | -3/Research | Found Prototype Processor 23393 | -3/Research | Identified Exp. Core Analyzer 23450 | -3/Research | Found Prototype Device 23450 | -3/Research | Identified Exp. Thermal Shield 23467 | -3/Research | Spotted Striker 23467 | -3/Research | Spotted Executioner 23470 | -3/Research | Lost 3 allies 23502 | -3/Research | Destroyed Executioner 23505 | -3/Research | Destroyed Striker 23515 | -3/Research | Found Exp. Thermal Shield 23532 | -3/Research | Lost 6 allies 23672 | -3/Research | Entered Quarantine 24059 | -3/Quarantine | Found Alien Reactor 24095 | -3/Quarantine | Discovered new exit (range 9) 24185 | -3/Quarantine | Cryocooling Duct disabled 24193 | -3/Quarantine | Cryocooling Duct disabled 24200 | -3/Quarantine | Ambient heat levels rising (+20) 24200 | -3/Quarantine | Non-combat units ordered to evacuate 24208 | -3/Quarantine | Ambient heat levels rising (+20) 24208 | -3/Quarantine | Combat units ordered to evacuate 24308 | -3/Quarantine | Quarantine Guard activated 24503 | -3/Quarantine | Build established: Hauler-Mutant 24541 | -3/Quarantine | Found Prototype Protection 24541 | -3/Quarantine | Identified Centrium Heavy Armor Plating 24553 | -3/Quarantine | Spotted Quarantine Guard 24579 | -3/Quarantine | Spotted Quarantine Guard 24587 | -3/Quarantine | Destroyed Quarantine Guard 24630 | -3/Quarantine | Destroyed Quarantine Guard 24714 | -3/Quarantine | Spotted Quarantine Guard 24752 | -3/Quarantine | Destroyed Quarantine Guard 24836 | -3/Quarantine | Spotted Quarantine Guard 24856 | -3/Quarantine | Spotted Quarantine Guard 24863 | -3/Quarantine | Destroyed Quarantine Guard 24881 | -3/Quarantine | Destroyed Quarantine Guard 24964 | -3/Quarantine | Spotted Quarantine Guard 24971 | -3/Quarantine | Spotted Quarantine Guard 24978 | -3/Quarantine | Destroyed Quarantine Guard 24994 | -3/Quarantine | Destroyed Quarantine Guard 25001 | -3/Quarantine | Spotted Quarantine Guard 25021 | -3/Quarantine | Destroyed Quarantine Guard 25170 | -3/Quarantine | Found Fusion Bomb Launcher 25379 | -3/Quarantine | Found Alien Slashing Weapon 25379 | -3/Quarantine | Identified Sigix Broadsword 25504 | -3/Quarantine | Found Alien Artifact 25699 | -3/Quarantine | Found Alien Artifact 25823 | -3/Quarantine | Found Alien Artifact 25823 | -3/Quarantine | Identified Phase Redirector 25981 | -3/Quarantine | Spotted Quarantine Guard 26018 | -3/Quarantine | Destroyed Quarantine Guard 26746 | -3/Quarantine | Spotted Quarantine Guard 26785 | -3/Quarantine | Destroyed Quarantine Guard 27207 | -3/Quarantine | Repaired Centrium Heavy Armor Plating 27493 | -3/Quarantine | Build established: Scavenger-Mutant 27967 | -3/Quarantine | Found Alien Impact Weapon 27967 | -3/Quarantine | Identified Core Stripper 28101 | -3/Quarantine | Spotted Fortress 28110 | -3/Quarantine | Destroyed Fortress 28138 | -3/Quarantine | Found Prototype Reactor 28138 | -3/Quarantine | Identified Vortex Chain Reactor 28196 | -3/Quarantine | Found Prototype Device 28201 | -3/Quarantine | Found Prototype Device 28203 | -3/Quarantine | Found Prototype Device 28206 | -3/Quarantine | Identified Exp. EM Shield 28207 | -3/Quarantine | Identified Exp. Force Field 28227 | -3/Quarantine | Identified Thermal Barrier 28411 | -3/Quarantine | Build established: Hauler-Mutant 29110 | -3/Quarantine | Repaired Arm. Heavy Treads? 29226 | -3/Quarantine | Found Alien Artifact 29227 | -3/Quarantine | Identified Dimensional Node Initializer 29227 | -3/Quarantine | Initialized slip node 29230 | -3/Quarantine | Found Dimensional Node Initializer 29242 | -3/Quarantine | Found Alien Artifact 29461 | -3/Quarantine | Identified Transdimensional Reconstructor (x2) 29461 | -3/Quarantine | Warped through subspace to slip node 29479 | -3/Quarantine | Found Alien Artifact 29483 | -3/Quarantine | Found Alien Artifact 29487 | -3/Quarantine | Found Transdimensional Reconstructor 29608 | -3/Quarantine | Found Alien Energy Cannon 29984 | -3/Quarantine | Identified exit to Research 30842 | -3/Quarantine | Entered Research 30842 | -2/Research | Evolved 2 slots: Utility x2 31069 | -2/Research | Discovered new exit (range 18) 31098 | -2/Research | Identified exit to Access 31429 | -2/Research | Allied Derelicts emerged from ambush trap array 31701 | -2/Research | Found Prototype Launcher 31701 | -2/Research | Identified Adv. Micro-nuke Launcher 31852 | -2/Research | Identified exit to Testing 31877 | -2/Research | Discovered exit to Access (range 16) 31955 | -2/Research | Identified Hpw. Transdimensional Reconstructor (x2) 31972 | -2/Research | Build established: Hauler-Assassin 31997 | -2/Research | Entered Testing 32011 | -2/Testing | Identified Core Cannon 32074 | -2/Testing | Found Prototype Energy Gun 32074 | -2/Testing | Identified Tachyon Dispersion Ray 32560 | -2/Testing | Found Prototype Energy Cannon 32560 | -2/Testing | Identified Disintegrator 32733 | -2/Testing | Found Prototype Device 32733 | -2/Testing | Identified Exp. Actuator Array 32744 | -2/Testing | Found Exp. Actuator Array 32775 | -2/Testing | Found Prototype Ballistic Cannon 32775 | -2/Testing | Identified Perforator 32923 | -2/Testing | Spotted Striker 32974 | -2/Testing | Spotted Striker 32994 | -2/Testing | Destroyed Striker 32997 | -2/Testing | First assault squad dispatched 33028 | -2/Testing | Destroyed Striker 33054 | -2/Testing | Spotted Alpha 7 33077 | -2/Testing | Destroyed Alpha 7 33096 | -2/Testing | Stole the SGEMP Prototype 33151 | -2/Testing | Destroyed 7 combat bots 33330 | -2/Testing | Identified exit to Garrison 33330 | -2/Testing | Entered Garrison 33343 | -2/Garrison | Triggered checkpoint 33528 | -2/Garrison | Triggered checkpoint 33576 | -2/Garrison | Garrison Relay disabled 33626 | -2/Garrison | Build established: Hauler-Gladiator 33632 | -2/Garrison | Spotted B-90 Cyclops 33657 | -2/Garrison | Destroyed B-90 Cyclops 33755 | -2/Garrison | System corruption reached 10% 33830 | -2/Garrison | Triggered checkpoint 33860 | -2/Garrison | Triggered checkpoint 34063 | -2/Garrison | Discovered exit to Access (range 10) 34082 | -2/Garrison | Spotted Striker 34082 | -2/Garrison | Spotted Striker 34097 | -2/Garrison | Destroyed Striker 34103 | -2/Garrison | Destroyed Striker 34139 | -2/Garrison | Rewired Executioner 34146 | -2/Garrison | Rewired Executioner 34198 | -2/Garrison | Triggered checkpoint 34226 | -2/Garrison | Garrison Relay disabled 34320 | -2/Garrison | Triggered checkpoint 34488 | -2/Garrison | Triggered checkpoint 34503 | -2/Garrison | Garrison Relay disabled 34550 | -2/Garrison | Discovered exit to Access (range 10) 34628 | -2/Garrison | Triggered checkpoint 34763 | -2/Garrison | Installed Relay Interface Framework 34774 | -2/Garrison | Discovered exit to Access (range 12) 34816 | -2/Garrison | Triggered checkpoint 34825 | -2/Garrison | Core integrity fell below 50% 34947 | -2/Garrison | Entered Access 34947 | -1/Access | Evolved 2 slots: Utility x1, Weapon x1 34948 | -1/Access | Identified exit to Surface 34949 | -1/Access | Loaded intel: 120 machine locations 34949 | -1/Access | Loaded intel: 91 trap records 34949 | -1/Access | Discovered exit to Surface (range 118) 34949 | -1/Access | Identified exit to Command 34949 | -1/Access | Discovered exit to Command (range 129) 34949 | -1/Access | Delivered the SGEMP Prototype to Zhirov 34949 | -1/Access | Zhirov transferred Access data 34955 | -1/Access | Identified Subatomic Replicator 34955 | -1/Access | Used Subatomic Replicator to replicate Sigix Broadsword 35092 | -1/Access | High security lockdown imminent 35119 | -1/Access | Spotted B-99 Colossus 35153 | -1/Access | Allies destroyed B-99 Colossus 35172 | -1/Access | High security lockdown engaged 35187 | -1/Access | Zhirov warped through subspace 35201 | -1/Access | Warped through subspace 35259 | -1/Access | Warped through subspace 35334 | -1/Access | Destroyed 9 combat bots 35353 | -1/Access | Scanned by Researcher 35394 | -1/Access | Spotted Investigator 35399 | -1/Access | Destroyed Investigator 35474 | -1/Access | Spotted Executioner 35486 | -1/Access | Spotted Striker 35505 | -1/Access | Destroyed Striker 35506 | -1/Access | System corruption reached 10% 35522 | -1/Access | Spotted Executioner 35522 | -1/Access | Spotted Striker 35522 | -1/Access | Spotted Striker 35523 | -1/Access | Spotted Executioner 35523 | -1/Access | Spotted Executioner 35551 | -1/Access | Identified Terrabomb 35551 | -1/Access | Used Terrabomb 35551 | -1/Access | Spotted B-99 Colossus 35551 | -1/Access | Spotted B-99 Colossus 35587 | *** | Escaped! Last Messages --------------- 35576_ Penetrated by Slug. 35576_ Slug penetrates Main Access Shell. 35579_ Penetrated by Slug. 35579_ Slug penetrates Main Access Shell. 35579_ Penetrated by Slug. 35579_ Slug penetrates Main Access Shell. 35583_ Ended siege mode. 35583_ Striker knocked back. 35583_ Penetrated by Slug. 35583_ Slug penetrates Main Access Shell. 35583_ Penetrated by Slug. 35583_ Slug penetrates Main Access Shell. 35583_ Slug penetrates Sealed Barrier. 35583_ Critical hit (Impale). 35583_ Core Cannon destroyed. 35586_ Centrium Heavy Treads destroyed. 35586_ Critical hit (Blast). 35586_ Knocked back. 35586_ Penetrated by Slug. 35586_ Slug penetrates Main Access Shell. Map ----- +----------------------------------------------------+ | ########## ##"""""""" " " ####### | | ##########+##"""""""" " " ###### | | ### ! " " " ###### | | ### " " ] " ###### | | ### " " " ##### | | ### !!! " "= " ##### | | ### !! + %" " #### | | ### """ """ !! " " % !" #### | | ### """G""" " """""""" #### | | ############+"""""""" """" ### | | # " " " # | | # " " " % # | | # " " " % # | | # " " " # | | # " " " # | | # " " " # | | + " " " ## | | # " """""""""""" ## | | # ## """"""""""""g ### | | # #####""""""""""; ### | | # " """""""""""; #### | | # " " BBg ##### | | #############" " """"" BB ######## | | ################## " K%; ###### | | ################## " "" % % ######## | | ################## " "@ "% " ########## # | | ################## " " " ############ # | | ####### ###### """""" ################# # | | T" " ###### ################# # | | "" ###### ################# # | | ####### #####""""""""""""################ # | | ######### #######"" ################# # | | ######### #######"" ################# # | | ######### #######"" ################# + | | ######### #######T ################# # | | ######### #######"" ################# # | | ######### #######"" ################# # | | ######### #######"" ################ | | ########### ^^ | | ########### ^^ | | ##########################################+### | | ################################## ##### | | ################################## ##### | | ################################## ##### | | ##################################""""" ##### | | ##################################""""" ##### | | ##################################""""" ##### | | ##################################""""" ##### | | ##################################""""" ##### | | ##################################""""" ##### | +----------------------------------------------------+ Best States ------------- Heat Dissipation 72 Energy Generation 73 Energy Capacity 950 Matter Stores 300 Matter Capacity 700 Sight Range 16 Robot Scan Range 18 Terrain Scan Density 10 Jamming Range 16 Power Amplification 30 Armor Coverage 675 Resistance: KI 25 Resistance: EX 50 Resistance: EM 75 Weapon Shielding 66 Phase Shifting 10 Evasion (%) 50 Melee Accuracy 8 Target Analysis 6 Core Analysis 8 Recoil Reduction 8 Offensive Hacking 14 Defensive Hacking 14 Authchip Count 3 Item Schematics ----------------- Cargo Storage Unit | -10/Materials | Hacked Huge Storage Unit | -10/Materials | Hacked Lgt. Treads | -9/Materials | Scanalyzed Katana | -9/Materials | Scanalyzed Hrd. Medium Armor Plating | -9/Materials | Scanalyzed Actuator Array | -8/Materials | Hacked Exp. Heat Sink | -5/Zhirov | Free Assault Drone Bay | -5/Zhirov | Free Exp. Optical Array | -5/Zhirov | Free Imp. Arc Thrower | -5/Zhirov | Free Enh. Force Lance | -4/Factory | Scanalyzed Mace | -4/Factory | Scanalyzed Imp. Actuator Array | -4/Factory | Hacked Power Sword | -4/Factory | Hacked Cld. Linear Gravjet | -2/Testing | Archive Adv. Thermal Defense Suite | -2/Testing | Archive Cld. Plasma Rifle | -2/Testing | Archive Robot Schematics ------------------ K-01 Serf | -2/Testing | Archive G-73 Enforcer | -2/Testing | Archive Fabricated ------------ Actuator Array | x2 | -5/Factory | Authchip Repaired ---------- Centrium Heavy Armor Plating | 10% | -3/Quarantine Arm. Heavy Treads | 28% | -3/Quarantine Studied --------- Lgt. Treads | -9/Materials | Hacked Katana | -8/Materials | Hacked Arm. Treads | -8/Materials | Hacked Adv. Treads | -8/Materials | Hacked Imp. Treads | -8/Materials | Hacked Quantum Reactor | -2/Research | Hacked Alien Tech Used ----------------- Integrated Dissipator Sigix Broadsword Phase Redirector Core Stripper Dimensional Node Initializer Transdimensional Reconstructor Core Cannon Subatomic Replicator High-powered Transdimensional Reconstructor Terrabomb Achievements -------------- None Challenges ------------ None Game ------ Seed MyomerDiametricCharge Manual? 0 Play Time 05:21:12 Cumulative 598.0 hours Start 2026.09.05 @ 18:26:57 End 2026.09.06 @ 00:27:25 Sessions 1 Manual Loads 0 Difficulty Rogue Special Mode None Game No. 496 Rogue 496 Adventurer 0 Explorer 0 Win Type 0 Total 20 Types 12/0/3/1/0/0/0/2/0/2 Lore% 69 Gallery% 72 Achievement% 69 Wizard Run 0 Options --------- Layout 1 ASCII 0 Keyboard 0 Movement Mouse Keybinds 0 Fullscreen 2 Font 24/Cog Map View 50x35 Zoom Use 18% Tactical HUD 1 Map Filters NONE Filters NONE Steam 1 RUN: f4464413-3af7-4ef9-8a68-2c829ab38b37